[Event "Live Chess"]
[Site "Chess.com"]
[Date "2023.05.21"]
[Round "-"]
[White "CheckThis4"]
[Black "Tushinskiy"]
[Result "1-0"]
[WhiteElo "2513"]
[BlackElo "2159"]
[TimeControl "300"]
[EndTime "17:49:30 PDT"]
[Termination "CheckThis4 won by resignation"]

1. d4 {[%clk 0:04:58]} 1... d5 {[%clk 0:04:58.6]} 2. c4 {[%clk 0:04:54.4]} 2...
c6 {[%clk 0:04:58.5]} 3. Nc3 {[%clk 0:04:53.2]} 3... e6 {[%clk 0:04:57.7]} 4. e4
{[%clk 0:04:51.9]} 4... dxe4 {[%clk 0:04:56.2]} 5. Nxe4 {[%clk 0:04:51.5]} 5...
Nf6 {[%clk 0:04:55.6]} 6. Nxf6+ {[%clk 0:04:49.7]} 6... gxf6 {[%clk 0:04:54.9]}
7. Nf3 {[%clk 0:04:48.7]} 7... Nd7 {[%clk 0:04:53.5]} 8. Be2 {[%clk 0:04:47.3]}
8... b6 {[%clk 0:04:52.9]} 9. O-O {[%clk 0:04:46]} 9... Bb7 {[%clk 0:04:52.3]}
10. Re1 {[%clk 0:04:45.3]} 10... Qc7 {[%clk 0:04:51.3]} 11. d5 {[%clk
0:04:43.3]} 11... cxd5 {[%clk 0:04:49.5]} 12. cxd5 {[%clk 0:04:42.5]} 12... Bxd5
{[%clk 0:04:46.6]} 13. Ba6 {[%clk 0:04:28.6]} 13... Be7 {[%clk 0:04:43.2]} 14.
Bh6 {[%clk 0:04:22.9]} 14... Nc5 {[%clk 0:04:37.2]} 15. Bb5+ {[%clk 0:04:20.7]}
15... Bc6 {[%clk 0:04:34]} 16. Nd4 {[%clk 0:04:12.1]} 16... Bxb5 {[%clk
0:04:30.3]} 17. Nxb5 {[%clk 0:04:11.6]} 17... Qc6 {[%clk 0:04:23.1]} 18. Qe2
{[%clk 0:04:09.8]} 18... Rg8 {[%clk 0:04:20.1]} 19. g3 {[%clk 0:04:03.5]} 19...
Rg6 {[%clk 0:04:18.9]} 20. Be3 {[%clk 0:03:59]} 20... a6 {[%clk 0:04:12.3]} 21.
Nd4 {[%clk 0:03:57.4]} 21... Qb7 {[%clk 0:04:11]} 22. b4 {[%clk 0:03:54.5]}
22... Nd7 {[%clk 0:04:09.7]} 23. a3 {[%clk 0:03:42.3]} 23... Rd8 {[%clk
0:04:06.3]} 24. Rac1 {[%clk 0:03:40.4]} 24... Ne5 {[%clk 0:04:03.9]} 25. Rc3
{[%clk 0:03:30.6]} 25... Kf8 {[%clk 0:03:49.5]} 26. f4 {[%clk 0:03:13.2]} 26...
Ng4 {[%clk 0:03:44.3]} 27. Nc6 {[%clk 0:03:09.7]} 27... Rd5 {[%clk 0:03:35.7]}
28. Rec1 {[%clk 0:02:45.8]} 28... a5 {[%clk 0:03:21.5]} 29. h3 {[%clk 0:02:35]}
29... Nxe3 {[%clk 0:03:16.8]} 30. Qxe3 {[%clk 0:02:34]} 30... axb4 {[%clk
0:03:15.5]} 31. axb4 {[%clk 0:02:32.5]} 31... Kg7 {[%clk 0:03:06.2]} 32. Kh2
{[%clk 0:02:27.3]} 32... Bd6 {[%clk 0:03:04.8]} 33. R1c2 {[%clk 0:02:18]} 33...
h5 {[%clk 0:03:03.2]} 34. h4 {[%clk 0:02:16.1]} 34... Rg4 {[%clk 0:02:52.2]} 35.
Qe4 {[%clk 0:02:12.7]} 35... Rd1 {[%clk 0:02:30.6]} 36. Rd3 {[%clk 0:01:56.9]}
36... Rxd3 {[%clk 0:02:28.2]} 37. Qxd3 {[%clk 0:01:56.8]} 37... Bf8 {[%clk
0:02:20.6]} 38. Nd8 {[%clk 0:01:33]} 38... Qe7 {[%clk 0:02:17.1]} 39. b5 {[%clk
0:01:27.7]} 39... e5 {[%clk 0:02:08.5]} 40. Re2 {[%clk 0:01:12.7]} 40... Qc5
{[%clk 0:01:52.9]} 41. Qd7 {[%clk 0:01:09.2]} 41... Be7 {[%clk 0:01:50.9]} 42.
Nc6 {[%clk 0:01:05.6]} 42... Bd6 {[%clk 0:01:27.1]} 43. fxe5 {[%clk 0:00:59.1]}
43... fxe5 {[%clk 0:01:20.1]} 44. Nd8 {[%clk 0:00:49.3]} 44... Qc4 {[%clk
0:01:18]} 45. Rf2 {[%clk 0:00:46.9]} 45... Rxh4+ {[%clk 0:01:01.3]} 46. gxh4
{[%clk 0:00:46]} 46... Qxh4+ {[%clk 0:01:01.2]} 47. Kg2 {[%clk 0:00:44.8]} 47...
Qg4+ {[%clk 0:00:59.2]} 48. Qxg4+ {[%clk 0:00:43.1]} 48... hxg4 {[%clk
0:00:56.9]} 49. Rxf7+ {[%clk 0:00:43]} 49... Kg6 {[%clk 0:00:55.9]} 50. Rd7
{[%clk 0:00:42.1]} 50... Bc5 {[%clk 0:00:55.1]} 51. Ne6 {[%clk 0:00:40.9]} 51...
Be3 {[%clk 0:00:53.1]} 52. Nc7 {[%clk 0:00:40]} 52... Kf5 {[%clk 0:00:51.4]} 53.
Nd5 {[%clk 0:00:39.6]} 53... Bc5 {[%clk 0:00:49.4]} 54. Rb7 {[%clk 0:00:38.1]}
54... e4 {[%clk 0:00:47.5]} 55. Nxb6 {[%clk 0:00:37.6]} 55... e3 {[%clk
0:00:46.7]} 56. Kf1 {[%clk 0:00:31.2]} 56... Ke4 {[%clk 0:00:45.3]} 57. Ke2
{[%clk 0:00:29.8]} 57... g3 {[%clk 0:00:43.5]} 58. Na4 {[%clk 0:00:28]} 58... g2
{[%clk 0:00:42.1]} 59. Nxc5+ {[%clk 0:00:26.4]} 59... Kd5 {[%clk 0:00:40.8]} 60.
Rg7 {[%clk 0:00:25]} 60... Kxc5 {[%clk 0:00:39.2]} 61. Rxg2 {[%clk 0:00:23.9]}
61... Kxb5 {[%clk 0:00:39.1]} 62. Kxe3 {[%clk 0:00:23.6]} 1-0

[Event "Live Chess"]
[Site "Chess.com"]
[Date "2023.05.21"]
[Round "-"]
[White "Olisingapore"]
[Black "Doge_Dandolo"]
[Result "1-0"]
[WhiteElo "1806"]
[BlackElo "1932"]
[TimeControl "300"]
[EndTime "17:49:30 PDT"]
[Termination "Olisingapore won by checkmate"]

1. d4 {[%clk 0:04:59]} 1... d5 {[%clk 0:04:58.4]} 2. c4 {[%clk 0:04:58.5]} 2...
c6 {[%clk 0:04:57.6]} 3. Nf3 {[%clk 0:04:57.7]} 3... Nf6 {[%clk 0:04:56.8]} 4.
g3 {[%clk 0:04:57.4]} 4... Bf5 {[%clk 0:04:54.8]} 5. Bg2 {[%clk 0:04:52.9]} 5...
e6 {[%clk 0:04:54.1]} 6. Nc3 {[%clk 0:04:51.9]} 6... Be7 {[%clk 0:04:50.2]} 7.
Qb3 {[%clk 0:04:51.4]} 7... Qc8 {[%clk 0:04:46.6]} 8. Bf4 {[%clk 0:04:46.8]}
8... O-O {[%clk 0:04:44.8]} 9. O-O {[%clk 0:04:45.8]} 9... Nbd7 {[%clk
0:04:43.8]} 10. Rfe1 {[%clk 0:04:32]} 10... Ne4 {[%clk 0:04:42.1]} 11. Nxe4
{[%clk 0:04:28.6]} 11... Bxe4 {[%clk 0:04:41.1]} 12. Nd2 {[%clk 0:04:25.6]}
12... Bxg2 {[%clk 0:04:39.5]} 13. Kxg2 {[%clk 0:04:25.5]} 13... Bf6 {[%clk
0:04:38.1]} 14. Nf3 {[%clk 0:04:23.6]} 14... Re8 {[%clk 0:04:34.9]} 15. e4
{[%clk 0:04:20.1]} 15... dxe4 {[%clk 0:04:32.8]} 16. Rxe4 {[%clk 0:04:20]} 16...
c5 {[%clk 0:04:28.5]} 17. d5 {[%clk 0:04:05.6]} 17... exd5 {[%clk 0:04:26.8]}
18. Rxe8+ {[%clk 0:04:04.3]} 18... Qxe8 {[%clk 0:04:25.4]} 19. cxd5 {[%clk
0:04:03.5]} 19... b6 {[%clk 0:04:20.1]} 20. Re1 {[%clk 0:03:58.7]} 20... Qf8
{[%clk 0:04:18.4]} 21. Nd2 {[%clk 0:03:36.1]} 21... g5 {[%clk 0:04:10.4]} 22.
Bc7 {[%clk 0:03:32]} 22... Rc8 {[%clk 0:04:08.6]} 23. d6 {[%clk 0:03:28.6]}
23... Bd8 {[%clk 0:04:07.4]} 24. Qd5 {[%clk 0:03:24.5]} 24... Bxc7 {[%clk
0:04:06]} 25. dxc7 {[%clk 0:03:23.1]} 25... Rxc7 {[%clk 0:04:05.1]} 26. Ne4
{[%clk 0:03:15.5]} 26... h6 {[%clk 0:03:57.5]} 27. Nd6 {[%clk 0:02:56.7]} 27...
Nf6 {[%clk 0:03:48.7]} 28. Qe5 {[%clk 0:02:40.8]} 28... Rd7 {[%clk 0:03:43.2]}
29. Qxf6 {[%clk 0:02:36.6]} 29... Qxd6 {[%clk 0:03:41.6]} 30. Re8+ {[%clk
0:02:33.6]} 30... Kh7 {[%clk 0:03:39]} 31. Rh8# {[%clk 0:02:32.8]} 1-0

[Event "Live Chess"]
[Site "Chess.com"]
[Date "2023.05.21"]
[Round "-"]
[White "manthanit"]
[Black "KeithArkell"]
[Result "0-1"]
[WhiteElo "1047"]
[BlackElo "2605"]
[TimeControl "300"]
[EndTime "17:49:46 PDT"]
[Termination "KeithArkell won by checkmate"]

1. e4 {[%clk 0:04:58.7]} 1... c6 {[%clk 0:04:58.6]} 2. Nf3 {[%clk 0:04:58.3]}
2... d5 {[%clk 0:04:58.5]} 3. exd5 {[%clk 0:04:57.3]} 3... cxd5 {[%clk
0:04:57.9]} 4. d4 {[%clk 0:04:56.8]} 4... Nf6 {[%clk 0:04:57.8]} 5. Bd3 {[%clk
0:04:54.7]} 5... Nc6 {[%clk 0:04:57.7]} 6. Nc3 {[%clk 0:04:53.8]} 6... Bg4
{[%clk 0:04:56.6]} 7. Be3 {[%clk 0:04:51.8]} 7... e6 {[%clk 0:04:55.5]} 8. h3
{[%clk 0:04:51.3]} 8... Bxf3 {[%clk 0:04:54.2]} 9. Qxf3 {[%clk 0:04:50]} 9...
Bb4 {[%clk 0:04:52.8]} 10. Bd2 {[%clk 0:04:47.6]} 10... Nxd4 {[%clk 0:04:50.6]}
11. O-O-O {[%clk 0:04:37.3]} 11... Nxf3 {[%clk 0:04:48.9]} 12. gxf3 {[%clk
0:04:28.8]} 12... d4 {[%clk 0:04:46.9]} 13. Ne4 {[%clk 0:04:26.6]} 13... Bxd2+
{[%clk 0:04:42.5]} 14. Nxd2 {[%clk 0:04:25.1]} 14... O-O {[%clk 0:04:40.1]} 15.
a3 {[%clk 0:04:24.1]} 15... a6 {[%clk 0:04:38.3]} 16. Kb1 {[%clk 0:04:23.6]}
16... b5 {[%clk 0:04:37.5]} 17. c4 {[%clk 0:04:21]} 17... dxc3 {[%clk
0:04:35.9]} 18. bxc3 {[%clk 0:04:15.3]} 18... Qxd3+ {[%clk 0:04:34.3]} 19. Ka2
{[%clk 0:04:11.4]} 19... Qc2+ {[%clk 0:04:32.9]} 20. Ka1 {[%clk 0:04:08.5]}
20... Nd5 {[%clk 0:04:32]} 21. Ne4 {[%clk 0:04:04.5]} 21... f5 {[%clk 0:04:31]}
22. Ng5 {[%clk 0:03:59.5]} 22... Nxc3 {[%clk 0:04:29]} 23. Rd2 {[%clk
0:03:51.1]} 23... Qxd2 {[%clk 0:04:27.8]} 24. Nxe6 {[%clk 0:03:43.9]} 24... Qa2#
{[%clk 0:04:27.7]} 0-1

[Event "Live Chess"]
[Site "Chess.com"]
[Date "2023.05.21"]
[Round "-"]
[White "gmnorfolk"]
[Black "garyjc"]
[Result "1-0"]
[WhiteElo "2126"]
[BlackElo "1036"]
[TimeControl "300"]
[EndTime "17:50:04 PDT"]
[Termination "gmnorfolk won by resignation"]

1. d4 {[%clk 0:04:57.3]} 1... g6 {[%clk 0:04:53]} 2. e4 {[%clk 0:04:54.4]} 2...
Nf6 {[%clk 0:04:51.9]} 3. e5 {[%clk 0:04:50.9]} 3... Nd5 {[%clk 0:04:50.1]} 4.
Be2 {[%clk 0:04:49.4]} 4... Bg7 {[%clk 0:04:48.9]} 5. c4 {[%clk 0:04:48.2]} 5...
Nb6 {[%clk 0:04:46.9]} 6. f4 {[%clk 0:04:47.2]} 6... O-O {[%clk 0:04:43.4]} 7.
Nf3 {[%clk 0:04:45.4]} 7... d6 {[%clk 0:04:41.4]} 8. O-O {[%clk 0:04:41.8]} 8...
N8d7 {[%clk 0:04:33.4]} 9. Nc3 {[%clk 0:04:40.6]} 9... dxe5 {[%clk 0:04:30.8]}
10. dxe5 {[%clk 0:04:35.6]} 10... Nc5 {[%clk 0:04:25.6]} 11. Be3 {[%clk
0:04:32.9]} 11... Ne6 {[%clk 0:04:17.3]} 12. Qxd8 {[%clk 0:04:20.6]} 12... Rxd8
{[%clk 0:04:15.3]} 13. Rfd1 {[%clk 0:04:19.8]} 13... Bd7 {[%clk 0:04:12]} 14.
Nd5 {[%clk 0:04:14.7]} 14... Nxd5 {[%clk 0:04:07.6]} 15. cxd5 {[%clk 0:04:12.2]}
15... Nf8 {[%clk 0:04:06]} 16. Rac1 {[%clk 0:04:10.7]} 16... Ba4 {[%clk
0:03:56.3]} 17. b3 {[%clk 0:04:09]} 17... Bd7 {[%clk 0:03:53.9]} 18. Rxc7 {[%clk
0:04:07.9]} 18... Bf5 {[%clk 0:03:52.5]} 19. Rxe7 {[%clk 0:04:00.3]} 19... Be4
{[%clk 0:03:39.9]} 20. d6 {[%clk 0:03:57]} 20... Nd7 {[%clk 0:03:30.6]} 21. Ng5
{[%clk 0:03:52.6]} 21... Bc2 {[%clk 0:03:15.3]} 22. Rd2 {[%clk 0:03:49.5]} 22...
Bf5 {[%clk 0:03:07.1]} 23. g4 {[%clk 0:03:46.1]} 23... Bxg4 {[%clk 0:02:32.2]}
24. Bxg4 {[%clk 0:03:43]} 1-0

[Event "Live Chess"]
[Site "Chess.com"]
[Date "2023.05.21"]
[Round "-"]
[White "raminguy"]
[Black "peter-785"]
[Result "1-0"]
[WhiteElo "1942"]
[BlackElo "1207"]
[TimeControl "300"]
[EndTime "17:50:15 PDT"]
[Termination "raminguy won by checkmate"]

1. d4 {[%clk 0:04:58.1]} 1... d5 {[%clk 0:04:58.1]} 2. Nc3 {[%clk 0:04:57.5]}
2... c6 {[%clk 0:04:57.4]} 3. Bf4 {[%clk 0:04:56.9]} 3... e6 {[%clk 0:04:56.8]}
4. e3 {[%clk 0:04:56.4]} 4... Nf6 {[%clk 0:04:56.2]} 5. Nf3 {[%clk 0:04:55.9]}
5... Be7 {[%clk 0:04:54.9]} 6. Ne5 {[%clk 0:04:55.3]} 6... O-O {[%clk
0:04:42.9]} 7. Bd3 {[%clk 0:04:54.7]} 7... Nbd7 {[%clk 0:04:40.8]} 8. g4 {[%clk
0:04:53]} 8... Nxe5 {[%clk 0:04:36.9]} 9. dxe5 {[%clk 0:04:51.6]} 9... Ne4
{[%clk 0:04:27.4]} 10. Nxe4 {[%clk 0:04:49.7]} 10... dxe4 {[%clk 0:04:26.6]} 11.
Bxe4 {[%clk 0:04:49.3]} 11... Qa5+ {[%clk 0:04:18.8]} 12. c3 {[%clk 0:04:47.9]}
12... Rd8 {[%clk 0:03:40.7]} 13. Qf3 {[%clk 0:04:42.1]} 13... Qb6 {[%clk
0:03:24.6]} 14. Rb1 {[%clk 0:04:37.1]} 14... Ba3 {[%clk 0:03:15.7]} 15. bxa3
{[%clk 0:04:34.5]} 15... Qa5 {[%clk 0:03:11.1]} 16. Rb3 {[%clk 0:04:24.5]} 16...
Qa6 {[%clk 0:02:57.6]} 17. Qh3 {[%clk 0:04:19.8]} 17... g6 {[%clk 0:02:54.7]}
18. Qh6 {[%clk 0:04:14.1]} 18... f5 {[%clk 0:02:37.4]} 19. exf6 {[%clk
0:04:09.4]} 19... Rd7 {[%clk 0:02:23.2]} 20. h4 {[%clk 0:03:56.1]} 20... Rf7
{[%clk 0:02:21.8]} 21. Bg5 {[%clk 0:03:50.7]} 21... e5 {[%clk 0:02:14.9]} 22. h5
{[%clk 0:03:45.2]} 22... Bxg4 {[%clk 0:02:13.1]} 23. f3 {[%clk 0:03:41.2]} 23...
Bxh5 {[%clk 0:02:07.3]} 24. Rxh5 {[%clk 0:03:39.1]} 24... gxh5 {[%clk
0:02:05.5]} 25. Bf5 {[%clk 0:03:15.1]} 25... Rd8 {[%clk 0:01:59.8]} 26. Be6
{[%clk 0:03:13.3]} 26... Rf8 {[%clk 0:01:56.1]} 27. Qg7# {[%clk 0:03:11.9]} 1-0

[Event "Live Chess"]
[Site "Chess.com"]
[Date "2023.05.21"]
[Round "-"]
[White "Conradical12"]
[Black "GMHarry-youtube"]
[Result "0-1"]
[WhiteElo "1633"]
[BlackElo "2041"]
[TimeControl "300"]
[EndTime "17:50:25 PDT"]
[Termination "GMHarry-youtube won by resignation"]

1. e4 {[%clk 0:04:57.7]} 1... c5 {[%clk 0:04:58.8]} 2. Nc3 {[%clk 0:04:55.1]}
2... d6 {[%clk 0:04:57.9]} 3. Nf3 {[%clk 0:04:53.7]} 3... Nf6 {[%clk 0:04:55.7]}
4. Bc4 {[%clk 0:04:52.6]} 4... g6 {[%clk 0:04:54]} 5. d3 {[%clk 0:04:50.5]} 5...
Bg7 {[%clk 0:04:52.4]} 6. Be3 {[%clk 0:04:50]} 6... O-O {[%clk 0:04:50.7]} 7.
Qd2 {[%clk 0:04:49.5]} 7... Nc6 {[%clk 0:04:43.7]} 8. O-O-O {[%clk 0:04:46.5]}
8... a6 {[%clk 0:04:40.5]} 9. a3 {[%clk 0:04:44.9]} 9... b5 {[%clk 0:04:39.7]}
10. Ba2 {[%clk 0:04:43.8]} 10... b4 {[%clk 0:04:38.7]} 11. Nd5 {[%clk
0:04:40.1]} 11... Nxd5 {[%clk 0:04:37]} 12. Bxd5 {[%clk 0:04:38]} 12... bxa3
{[%clk 0:04:35.7]} 13. c3 {[%clk 0:04:24]} 13... Rb8 {[%clk 0:04:26.5]} 14. b3
{[%clk 0:04:17.9]} 14... Na5 {[%clk 0:04:17.9]} 15. Bh6 {[%clk 0:04:08.5]} 15...
Rxb3 {[%clk 0:04:13.7]} 16. Bxg7 {[%clk 0:04:04]} 16... Kxg7 {[%clk 0:04:09.7]}
17. Qa2 {[%clk 0:03:52.6]} 17... Rxc3+ {[%clk 0:04:03.8]} 18. Kd2 {[%clk
0:03:50.3]} 18... e6 {[%clk 0:03:51.4]} 0-1

[Event "Live Chess"]
[Site "Chess.com"]
[Date "2023.05.21"]
[Round "-"]
[White "EdenHazard8"]
[Black "Long1968"]
[Result "1-0"]
[WhiteElo "1988"]
[BlackElo "1112"]
[TimeControl "300"]
[EndTime "17:50:41 PDT"]
[Termination "EdenHazard8 won on time"]

1. e4 {[%clk 0:04:58.8]} 1... e6 {[%clk 0:04:57.5]} 2. d4 {[%clk 0:04:57.5]}
2... d5 {[%clk 0:04:55.9]} 3. exd5 {[%clk 0:04:57.4]} 3... exd5 {[%clk 0:04:54]}
4. Bd3 {[%clk 0:04:56.7]} 4... Nf6 {[%clk 0:04:50.9]} 5. Nf3 {[%clk 0:04:55.3]}
5... Be7 {[%clk 0:04:45.5]} 6. O-O {[%clk 0:04:54.1]} 6... Bg4 {[%clk
0:04:43.1]} 7. h3 {[%clk 0:04:52.5]} 7... Bh5 {[%clk 0:04:40]} 8. c3 {[%clk
0:04:50.4]} 8... O-O {[%clk 0:04:36.6]} 9. Re1 {[%clk 0:04:48.4]} 9... Re8
{[%clk 0:04:33.7]} 10. Nbd2 {[%clk 0:04:46.6]} 10... Bd6 {[%clk 0:04:29.8]} 11.
Rxe8+ {[%clk 0:04:40.1]} 11... Qxe8 {[%clk 0:04:27.2]} 12. Nf1 {[%clk
0:04:38.6]} 12... Ne4 {[%clk 0:04:21.3]} 13. Be3 {[%clk 0:04:34.6]} 13... Nd7
{[%clk 0:04:06.5]} 14. N1d2 {[%clk 0:04:23.8]} 14... Nxd2 {[%clk 0:03:58.3]} 15.
Qxd2 {[%clk 0:04:13.5]} 15... Bxf3 {[%clk 0:03:53.3]} 16. gxf3 {[%clk
0:04:13.4]} 16... Qe6 {[%clk 0:03:40.6]} 17. Kg2 {[%clk 0:04:09.9]} 17... Re8
{[%clk 0:03:29]} 18. Re1 {[%clk 0:03:58.2]} 18... Nf6 {[%clk 0:02:46]} 19. Qc2
{[%clk 0:03:41.3]} 19... g6 {[%clk 0:02:03.1]} 20. Bd2 {[%clk 0:03:35]} 20...
Qd7 {[%clk 0:01:50.4]} 21. Rxe8+ {[%clk 0:03:34.9]} 21... Qxe8 {[%clk
0:01:41.8]} 22. Qb3 {[%clk 0:03:32.3]} 22... b6 {[%clk 0:01:30.5]} 23. Bg5
{[%clk 0:03:28.5]} 23... Qe6 {[%clk 0:01:22.3]} 24. Bxf6 {[%clk 0:03:26.5]}
24... Qxf6 {[%clk 0:01:18.1]} 25. Qxd5 {[%clk 0:03:23.7]} 25... Qf4 {[%clk
0:00:59.7]} 26. Bc4 {[%clk 0:03:14.8]} 26... Qh2+ {[%clk 0:00:50.3]} 27. Kf1
{[%clk 0:03:13.9]} 27... Qxh3+ {[%clk 0:00:47.7]} 28. Ke2 {[%clk 0:03:12.2]}
28... Qd7 {[%clk 0:00:37.5]} 29. Qe4 {[%clk 0:02:58.1]} 29... Kg7 {[%clk
0:00:24.4]} 30. Qh4 {[%clk 0:02:53.7]} 30... Qe7+ {[%clk 0:00:17]} 31. Qxe7
{[%clk 0:02:51.5]} 31... Bxe7 {[%clk 0:00:15]} 32. f4 {[%clk 0:02:51]} 32... g5
{[%clk 0:00:12.4]} 33. Kf3 {[%clk 0:02:50.3]} 33... f6 {[%clk 0:00:08.6]} 34.
fxg5 {[%clk 0:02:47.9]} 34... fxg5 {[%clk 0:00:06.6]} 35. Kg4 {[%clk 0:02:47.6]}
35... Kg6 {[%clk 0:00:03.3]} 36. Bd3+ {[%clk 0:02:46.3]} 36... Kf6 {[%clk
0:00:00.3]} 37. f4 {[%clk 0:02:44.8]} 1-0

[Event "Live Chess"]
[Site "Chess.com"]
[Date "2023.05.21"]
[Round "-"]
[White "LutherSullivan"]
[Black "Cimon"]
[Result "1-0"]
[WhiteElo "2115"]
[BlackElo "1854"]
[TimeControl "300"]
[EndTime "17:50:43 PDT"]
[Termination "LutherSullivan won on time"]

1. e4 {[%clk 0:04:48.1]} 1... c5 {[%clk 0:04:58]} 2. Nf3 {[%clk 0:04:46.4]} 2...
Nc6 {[%clk 0:04:56.6]} 3. c3 {[%clk 0:04:44.2]} 3... Nf6 {[%clk 0:04:54.5]} 4.
e5 {[%clk 0:04:42.2]} 4... Nd5 {[%clk 0:04:53]} 5. d4 {[%clk 0:04:40.1]} 5...
cxd4 {[%clk 0:04:50.9]} 6. cxd4 {[%clk 0:04:39.6]} 6... d6 {[%clk 0:04:49.6]} 7.
Bc4 {[%clk 0:04:29.3]} 7... dxe5 {[%clk 0:04:46.6]} 8. dxe5 {[%clk 0:04:26]}
8... e6 {[%clk 0:04:45.4]} 9. O-O {[%clk 0:04:23]} 9... Be7 {[%clk 0:04:43.6]}
10. Qe2 {[%clk 0:04:21]} 10... Nb6 {[%clk 0:04:28.9]} 11. Bb3 {[%clk 0:04:16.9]}
11... Qc7 {[%clk 0:04:25.3]} 12. Nc3 {[%clk 0:04:14.5]} 12... a6 {[%clk
0:04:21.7]} 13. Bf4 {[%clk 0:04:09.4]} 13... O-O {[%clk 0:04:06.7]} 14. Bg3
{[%clk 0:03:49.5]} 14... Bd7 {[%clk 0:03:51.2]} 15. Ne4 {[%clk 0:03:41.8]} 15...
Nb4 {[%clk 0:03:38.1]} 16. Rac1 {[%clk 0:03:37.1]} 16... Qd8 {[%clk 0:03:30.4]}
17. Nc5 {[%clk 0:03:12.2]} 17... Bc6 {[%clk 0:03:17.8]} 18. Rfd1 {[%clk
0:03:10.2]} 18... Qe8 {[%clk 0:03:14]} 19. Nd4 {[%clk 0:03:05.7]} 19... Bd5
{[%clk 0:03:05.3]} 20. Bxd5 {[%clk 0:02:58.9]} 20... N4xd5 {[%clk 0:03:01.4]}
21. Nxb7 {[%clk 0:02:54.5]} 21... Qa4 {[%clk 0:02:44]} 22. b3 {[%clk 0:02:44.8]}
22... Qa3 {[%clk 0:02:33.4]} 23. Nd6 {[%clk 0:02:40.8]} 23... Bg5 {[%clk
0:01:36.5]} 24. Nc4 {[%clk 0:02:02.7]} 24... Nxc4 {[%clk 0:01:29]} 25. Rxc4
{[%clk 0:01:59.8]} 25... Rac8 {[%clk 0:01:20.9]} 26. Ra4 {[%clk 0:01:54.6]}
26... Qc5 {[%clk 0:01:10.8]} 27. Rc4 {[%clk 0:01:45.4]} 27... Qe7 {[%clk
0:01:02]} 28. h4 {[%clk 0:01:30.2]} 28... Bh6 {[%clk 0:00:49.6]} 29. Nc6 {[%clk
0:01:19.8]} 29... Qb7 {[%clk 0:00:18]} 30. Qc2 {[%clk 0:01:16.2]} 30... Rc7
{[%clk 0:00:09.9]} 31. Na5 {[%clk 0:01:11.9]} 31... Qb6 {[%clk 0:00:07.1]} 32.
Rxc7 {[%clk 0:01:09.8]} 32... Nxc7 {[%clk 0:00:05.7]} 33. Nc4 {[%clk 0:01:08.7]}
33... Qc5 {[%clk 0:00:04.2]} 34. Qd3 {[%clk 0:01:06.9]} 34... Nd5 {[%clk
0:00:03]} 35. Qd4 {[%clk 0:01:04.8]} 35... Qxd4 {[%clk 0:00:01.9]} 36. Rxd4
{[%clk 0:01:04.4]} 36... g5 {[%clk 0:00:00.8]} 37. hxg5 {[%clk 0:01:03]} 1-0

[Event "Live Chess"]
[Site "Chess.com"]
[Date "2023.05.21"]
[Round "-"]
[White "Biranidun"]
[Black "jimwad"]
[Result "1-0"]
[WhiteElo "2639"]
[BlackElo "1254"]
[TimeControl "300"]
[EndTime "17:50:44 PDT"]
[Termination "Biranidun won by resignation"]

1. e4 {[%clk 0:04:59.3]} 1... e5 {[%clk 0:04:57.1]} 2. Nf3 {[%clk 0:04:57.9]}
2... Nc6 {[%clk 0:04:54.3]} 3. Bc4 {[%clk 0:04:56.9]} 3... Bc5 {[%clk
0:04:52.8]} 4. c3 {[%clk 0:04:54.1]} 4... Nf6 {[%clk 0:04:51.2]} 5. d4 {[%clk
0:04:53]} 5... exd4 {[%clk 0:04:49.8]} 6. b4 {[%clk 0:04:52.7]} 6... Nxb4 {[%clk
0:04:43.6]} 7. cxb4 {[%clk 0:04:51.5]} 7... Bxb4+ {[%clk 0:04:42.8]} 8. Bd2
{[%clk 0:04:47.2]} 8... Bxd2+ {[%clk 0:04:41.4]} 9. Nbxd2 {[%clk 0:04:47.1]}
9... O-O {[%clk 0:04:38.9]} 10. O-O {[%clk 0:04:42.1]} 10... c5 {[%clk
0:04:37.5]} 11. e5 {[%clk 0:04:37.1]} 11... Ne8 {[%clk 0:04:33.2]} 12. Ne4
{[%clk 0:04:26.5]} 12... Nc7 {[%clk 0:04:30.6]} 13. Nxc5 {[%clk 0:04:25.3]}
13... Ne6 {[%clk 0:04:28.7]} 14. Bxe6 {[%clk 0:04:23.9]} 14... dxe6 {[%clk
0:04:26.7]} 15. Qxd4 {[%clk 0:04:23.2]} 15... Qxd4 {[%clk 0:04:24.5]} 16. Nxd4
{[%clk 0:04:23.1]} 16... b6 {[%clk 0:04:19]} 17. Ne4 {[%clk 0:04:22.4]} 17...
Bb7 {[%clk 0:04:17.6]} 18. Nd6 {[%clk 0:04:21.5]} 18... Bd5 {[%clk 0:04:14.4]}
19. Rac1 {[%clk 0:04:21.1]} 19... Bxa2 {[%clk 0:04:10.5]} 20. Rc7 {[%clk
0:04:19.4]} 20... Bd5 {[%clk 0:04:05.8]} 21. Ra1 {[%clk 0:04:17.3]} 21... a5
{[%clk 0:04:03.8]} 22. f4 {[%clk 0:04:10.1]} 22... h6 {[%clk 0:03:52.3]} 23. f5
{[%clk 0:04:08]} 23... exf5 {[%clk 0:03:50.1]} 24. N4xf5 {[%clk 0:04:07.2]}
24... Be6 {[%clk 0:03:47.3]} 25. Nd4 {[%clk 0:04:04.9]} 25... Bd5 {[%clk
0:03:45.2]} 26. Ra3 {[%clk 0:03:57.3]} 26... a4 {[%clk 0:03:28.8]} 27. h4 {[%clk
0:03:55.3]} 27... g6 {[%clk 0:03:20.5]} 28. h5 {[%clk 0:03:47.7]} 28... g5
{[%clk 0:03:18.5]} 29. N4f5 {[%clk 0:03:44.9]} 29... Be6 {[%clk 0:03:15.6]} 30.
Nxh6+ {[%clk 0:03:28.6]} 30... Kg7 {[%clk 0:03:12.8]} 31. Nhf5+ {[%clk
0:03:23.6]} 31... Bxf5 {[%clk 0:03:10.8]} 32. Nxf5+ {[%clk 0:03:23.5]} 32... Kh7
{[%clk 0:03:08.7]} 33. e6 {[%clk 0:03:20.9]} 33... Kg8 {[%clk 0:02:54.7]} 34. e7
{[%clk 0:03:13.5]} 34... Rfc8 {[%clk 0:02:51.6]} 35. Rxc8+ {[%clk 0:03:11.9]}
35... Rxc8 {[%clk 0:02:50.4]} 36. Nd6 {[%clk 0:03:11.8]} 36... Rc1+ {[%clk
0:02:47.1]} 37. Kf2 {[%clk 0:03:11.2]} 37... Rc2+ {[%clk 0:02:44]} 38. Ke3
{[%clk 0:03:10.5]} 1-0